[Event "*** Qualifier 2: Titled Tuesday 3|2 Blitz"]
[Site "Chess.com"]
[Date "2017.04.11"]
[Round "5"]
[White "Tolya2"]
[Black "Blitzstream"]
[Result "0-1"]
[WhiteElo "2319"]
[BlackElo "2472"]
[TimeControl "180+2"]
[EndTime "14:07:19 PDT"]
[Termination "Blitzstream won by resignation"]

1. Nf3 {[%clk 0:03:02]} 1... e6 {[%clk 0:02:59.4]} 2. c4 {[%clk 0:03:02.3]} 2...
g5 {[%clk 0:02:59.8]} 3. h3 {[%clk 0:03:00.4]} 3... Bg7 {[%clk 0:02:59.6]} 4. d4
{[%clk 0:03:01]} 4... h6 {[%clk 0:02:59.5]} 5. Nc3 {[%clk 0:03:01.5]} 5... c5
{[%clk 0:02:58.7]} 6. e4 {[%clk 0:02:55.3]} 6... Nc6 {[%clk 0:02:56.9]} 7. dxc5
{[%clk 0:02:54.4]} 7... Qa5 {[%clk 0:02:55.2]} 8. Be2 {[%clk 0:02:53.6]} 8...
Nge7 {[%clk 0:02:39.3]} 9. O-O {[%clk 0:02:50.5]} 9... Qxc5 {[%clk 0:02:40]} 10.
Be3 {[%clk 0:02:50.1]} 10... Qb4 {[%clk 0:02:36.4]} 11. Nb5 {[%clk 0:02:47.1]}
11... O-O {[%clk 0:02:32.9]} 12. Rb1 {[%clk 0:02:36.4]} 12... a6 {[%clk
0:02:16.4]} 13. Nd6 {[%clk 0:02:23.5]} 13... Ne5 {[%clk 0:02:04.7]} 14. a3
{[%clk 0:02:07.4]} 14... Nxf3+ {[%clk 0:02:04.4]} 15. Bxf3 {[%clk 0:02:04]}
15... Qa5 {[%clk 0:02:05.9]} 16. c5 {[%clk 0:02:01.5]} 16... Nc6 {[%clk
0:01:59]} 17. Nc4 {[%clk 0:01:49]} 17... Qc7 {[%clk 0:01:59.6]} 18. b4 {[%clk
0:01:48.4]} 18... Ne5 {[%clk 0:01:55.4]} 19. Nd6 {[%clk 0:01:44.7]} 19... Rb8
{[%clk 0:01:12.3]} 20. Be2 {[%clk 0:01:43.9]} 20... Nc6 {[%clk 0:01:06.4]} 21.
Qd2 {[%clk 0:01:42.4]} 21... Ne7 {[%clk 0:00:31.7]} 22. h4 {[%clk 0:01:41.3]}
22... f6 {[%clk 0:00:30.5]} 23. e5 {[%clk 0:01:37]} 23... fxe5 {[%clk
0:00:26.3]} 24. hxg5 {[%clk 0:01:37.6]} 24... hxg5 {[%clk 0:00:23.5]} 25. Bxg5
{[%clk 0:01:37.1]} 25... Nf5 {[%clk 0:00:25]} 26. Rfd1 {[%clk 0:01:30.1]} 26...
b6 {[%clk 0:00:24.3]} 27. Nxc8 {[%clk 0:01:26.4]} 27... Qxc8 {[%clk 0:00:25.3]}
28. Qxd7 {[%clk 0:01:27]} 28... Qxd7 {[%clk 0:00:26.4]} 29. Rxd7 {[%clk
0:01:27.7]} 29... bxc5 {[%clk 0:00:28]} 30. Bxa6 {[%clk 0:01:26.6]} 30... cxb4
{[%clk 0:00:24.6]} 31. axb4 {[%clk 0:01:27.6]} 31... Nd4 {[%clk 0:00:25]} 32.
Be3 {[%clk 0:01:23.2]} 32... Nc2 {[%clk 0:00:20.3]} 33. b5 {[%clk 0:01:21.3]}
33... Nxe3 {[%clk 0:00:18]} 34. fxe3 {[%clk 0:01:22.5]} 34... Rb6 {[%clk
0:00:19.5]} 35. Rc1 {[%clk 0:01:20.7]} 35... Bh6 {[%clk 0:00:20.7]} 36. Rcc7
{[%clk 0:01:21.1]} 36... Bxe3+ {[%clk 0:00:21.2]} 37. Kh2 {[%clk 0:01:22.3]}
37... Rf6 {[%clk 0:00:20.2]} 38. Rg7+ {[%clk 0:01:20.2]} 38... Kf8 {[%clk
0:00:20.8]} 39. Rh7 {[%clk 0:01:20.3]} 39... Rh6+ {[%clk 0:00:21.5]} 40. Rxh6
{[%clk 0:01:20.2]} 40... Bxh6 {[%clk 0:00:23.4]} 41. Kg3 {[%clk 0:01:17.4]}
41... Bf4+ {[%clk 0:00:23.7]} 42. Kf3 {[%clk 0:01:18.2]} 42... Ke8 {[%clk
0:00:22.8]} 43. Ke4 {[%clk 0:01:19]} 43... Kd8 {[%clk 0:00:23.5]} 44. Rh7 {[%clk
0:01:17.2]} 44... Rd6 {[%clk 0:00:24.5]} 45. g4 {[%clk 0:01:17.2]} 45... Rd4+
{[%clk 0:00:25.4]} 46. Kf3 {[%clk 0:01:18.1]} 46... Rd3+ {[%clk 0:00:26.7]} 47.
Ke2 {[%clk 0:01:18.7]} 47... Rb3 {[%clk 0:00:27.8]} 48. Rg7 {[%clk 0:01:11.9]}
48... e4 {[%clk 0:00:28.9]} 49. b6 {[%clk 0:01:03.5]} 49... Rxb6 {[%clk
0:00:27.7]} 50. Bc4 {[%clk 0:01:04.1]} 50... Rb2+ {[%clk 0:00:28.7]} 51. Kd1
{[%clk 0:01:05]} 51... e3 {[%clk 0:00:23.9]} 52. g5 {[%clk 0:01:04.1]} 52...
Rd2+ {[%clk 0:00:24.5]} 53. Ke1 {[%clk 0:01:05.1]} 53... Bg3+ {[%clk 0:00:25.2]}
54. Kf1 {[%clk 0:01:05.1]} 54... Rf2+ {[%clk 0:00:26.4]} 55. Kg1 {[%clk
0:01:05.4]} 55... Be5 {[%clk 0:00:28]} 56. Rg8+ {[%clk 0:01:01.4]} 56... Ke7
{[%clk 0:00:28.9]} 57. Rg6 {[%clk 0:01:00.1]} 57... Bd4 {[%clk 0:00:28.5]} 58.
Rxe6+ {[%clk 0:01:00.4]} 58... Kd7 {[%clk 0:00:29.8]} 59. Kh1 {[%clk 0:01:00.7]}
59... Rc2 {[%clk 0:00:23.5]} 60. Bb3 {[%clk 0:01:01.3]} 60... Rb2 {[%clk
0:00:24.3]} 61. Bc4 {[%clk 0:01:02.5]} 61... Rc2 {[%clk 0:00:25.6]} 62. Bb3
{[%clk 0:01:03.7]} 62... Rc3 {[%clk 0:00:26.6]} 63. Ba2 {[%clk 0:01:04.2]} 63...
Ra3 {[%clk 0:00:27.5]} 64. Bc4 {[%clk 0:01:00.8]} 64... Ra4 {[%clk 0:00:28.8]}
65. Bb3 {[%clk 0:00:58.2]} 65... Rb4 {[%clk 0:00:30]} 66. Ba2 {[%clk 0:00:58.7]}
66... Rb2 {[%clk 0:00:31.2]} 67. Bc4 {[%clk 0:00:59.5]} 67... Rb1+ {[%clk
0:00:30.6]} 68. Kg2 {[%clk 0:00:59.4]} 68... Rb4 {[%clk 0:00:32.3]} 69. Bd3
{[%clk 0:00:58.1]} 69... Kxe6 {[%clk 0:00:31.5]} 70. g6 {[%clk 0:00:59.3]} 70...
Kf6 {[%clk 0:00:32.1]} 0-1

[Event "*** Qualifier 2: Titled Tuesday 3|2 Blitz"]
[Site "Chess.com"]
[Date "2017.04.11"]
[Round "5"]
[White "amaidel"]
[Black "Abrito99"]
[Result "1-0"]
[WhiteElo "2458"]
[BlackElo "2317"]
[TimeControl "180+2"]
[EndTime "14:07:28 PDT"]
[Termination "amaidel won on time"]

1. e4 {[%clk 0:03:02]} 1... e6 {[%clk 0:02:58.1]} 2. d4 {[%clk 0:03:01.5]} 2...
d5 {[%clk 0:02:59]} 3. Nc3 {[%clk 0:03:01.8]} 3... Bb4 {[%clk 0:02:59.6]} 4. e5
{[%clk 0:03:02.4]} 4... c5 {[%clk 0:03:00.1]} 5. a3 {[%clk 0:03:03.4]} 5...
Bxc3+ {[%clk 0:03:01.3]} 6. bxc3 {[%clk 0:03:05.3]} 6... Qa5 {[%clk 0:03:02.3]}
7. Bd2 {[%clk 0:03:04]} 7... Qa4 {[%clk 0:03:03.9]} 8. Qg4 {[%clk 0:02:59.7]}
8... Kf8 {[%clk 0:03:04.8]} 9. Qd1 {[%clk 0:02:47.8]} 9... b6 {[%clk 0:03:05.8]}
10. Nf3 {[%clk 0:02:47.7]} 10... Ne7 {[%clk 0:03:06.4]} 11. Bd3 {[%clk
0:02:38.6]} 11... Ba6 {[%clk 0:03:03.1]} 12. Qb1 {[%clk 0:02:32.7]} 12... Nbc6
{[%clk 0:02:48.5]} 13. Bxa6 {[%clk 0:02:21.9]} 13... Qxa6 {[%clk 0:02:48.9]} 14.
a4 {[%clk 0:02:23]} 14... Na5 {[%clk 0:02:45]} 15. Qb5 {[%clk 0:02:21.8]} 15...
Qc8 {[%clk 0:02:45]} 16. O-O {[%clk 0:02:19.4]} 16... Nc4 {[%clk 0:02:45.2]} 17.
a5 {[%clk 0:02:13.3]} 17... a6 {[%clk 0:02:30.2]} 18. Qa4 {[%clk 0:02:10.3]}
18... Nxd2 {[%clk 0:02:29.1]} 19. Nxd2 {[%clk 0:02:10.3]} 19... b5 {[%clk
0:02:29.3]} 20. Qa3 {[%clk 0:02:09.3]} 20... cxd4 {[%clk 0:02:28]} 21. cxd4
{[%clk 0:02:11.2]} 21... Ra7 {[%clk 0:02:26.9]} 22. Nb3 {[%clk 0:02:10.1]} 22...
g6 {[%clk 0:01:52.3]} 23. Nc5 {[%clk 0:02:08.2]} 23... Kg7 {[%clk 0:01:51.9]}
24. Qe3 {[%clk 0:02:01.6]} 24... h6 {[%clk 0:01:48.6]} 25. Qf4 {[%clk
0:02:00.2]} 25... Rf8 {[%clk 0:01:31.5]} 26. Ra3 {[%clk 0:01:56.1]} 26... Ng8
{[%clk 0:01:21.5]} 27. h4 {[%clk 0:01:51.7]} 27... h5 {[%clk 0:01:13.4]} 28. g4
{[%clk 0:01:32.6]} 28... hxg4 {[%clk 0:01:07.9]} 29. Qxg4 {[%clk 0:01:33.4]}
29... Nh6 {[%clk 0:00:57.7]} 30. Qf4 {[%clk 0:01:24.7]} 30... Nf5 {[%clk
0:00:57.7]} 31. h5 {[%clk 0:01:24.4]} 31... Rh8 {[%clk 0:00:57.7]} 32. Rh3
{[%clk 0:01:13.9]} 32... Qg8 {[%clk 0:00:46.1]} 33. Kg2 {[%clk 0:01:06.8]} 33...
Kf8 {[%clk 0:00:46.3]} 34. Rg1 {[%clk 0:01:02.4]} 34... g5 {[%clk 0:00:42.7]}
35. Qd2 {[%clk 0:00:54.3]} 35... g4 {[%clk 0:00:41.7]} 36. Rh2 {[%clk
0:00:51.9]} 36... g3 {[%clk 0:00:33]} 37. Rhh1 {[%clk 0:00:41.4]} 37... Qg4
{[%clk 0:00:30.1]} 38. Kf1 {[%clk 0:00:23.5]} 38... Qf3 {[%clk 0:00:18.4]} 39.
Qd3 {[%clk 0:00:18.2]} 39... Qf4 {[%clk 0:00:09.4]} 40. Rg2 {[%clk 0:00:13.8]}
40... gxf2 {[%clk 0:00:09.9]} 41. Rh3 {[%clk 0:00:13.5]} 41... Qxd4 {[%clk
0:00:07.9]} 42. Qxd4 {[%clk 0:00:13.6]} 42... Nxd4 {[%clk 0:00:09.3]} 43. Rxf2
{[%clk 0:00:15]} 43... Nf5 {[%clk 0:00:10.1]} 44. Rf4 {[%clk 0:00:10.7]} 44...
Ke7 {[%clk 0:00:11.4]} 45. Rg4 {[%clk 0:00:09.2]} 45... Rc7 {[%clk 0:00:12.5]}
46. Nxa6 {[%clk 0:00:09.6]} 46... Rxc2 {[%clk 0:00:13.9]} 47. Nb4 {[%clk
0:00:11.2]} 47... Rc1+ {[%clk 0:00:14.6]} 48. Ke2 {[%clk 0:00:12.7]} 48... Ra1
{[%clk 0:00:16]} 49. a6 {[%clk 0:00:13.4]} 49... Rc8 {[%clk 0:00:15]} 50. h6
{[%clk 0:00:13.3]} 50... Nxh6 {[%clk 0:00:04.3]} 51. Rxh6 {[%clk 0:00:13.8]}
51... Rb1 {[%clk 0:00:04.1]} 52. Rh7 {[%clk 0:00:13.8]} 1-0

[Event "*** Qualifier 2: Titled Tuesday 3|2 Blitz"]
[Site "Chess.com"]
[Date "2017.04.11"]
[Round "5"]
[White "Cayse"]
[Black "tigra"]
[Result "1-0"]
[WhiteElo "2615"]
[BlackElo "2603"]
[TimeControl "180+2"]
[EndTime "14:07:53 PDT"]
[Termination "Cayse won by resignation"]

1. e4 {[%clk 0:02:56.1]} 1... e6 {[%clk 0:03:00.7]} 2. d4 {[%clk 0:02:56.5]}
2... d5 {[%clk 0:03:02.6]} 3. Nd2 {[%clk 0:02:57.6]} 3... c5 {[%clk 0:03:02.6]}
4. Ngf3 {[%clk 0:02:58.2]} 4... Nf6 {[%clk 0:03:03]} 5. e5 {[%clk 0:02:58.6]}
5... Ne4 {[%clk 0:03:03.4]} 6. c3 {[%clk 0:02:48.8]} 6... Nc6 {[%clk 0:03:02.5]}
7. Bd3 {[%clk 0:02:49.1]} 7... Nxd2 {[%clk 0:03:02.8]} 8. Bxd2 {[%clk
0:02:49.5]} 8... Qb6 {[%clk 0:03:01.5]} 9. O-O {[%clk 0:02:46.7]} 9... cxd4
{[%clk 0:03:00.7]} 10. cxd4 {[%clk 0:02:47.3]} 10... Qxb2 {[%clk 0:03:01.4]} 11.
Rb1 {[%clk 0:02:34]} 11... Qa3 {[%clk 0:02:57.5]} 12. Rb3 {[%clk 0:02:18.5]}
12... Qxa2 {[%clk 0:02:54]} 13. Bc3 {[%clk 0:01:58.7]} 13... a6 {[%clk
0:02:38.7]} 14. Bc2 {[%clk 0:01:56.7]} 14... Be7 {[%clk 0:02:36.4]} 15. Qd2
{[%clk 0:01:48.5]} 15... Qa4 {[%clk 0:02:27.8]} 16. Rxb7 {[%clk 0:01:43.8]}
16... Qc4 {[%clk 0:02:25.4]} 17. Rb6 {[%clk 0:01:40.4]} 17... Na7 {[%clk
0:02:10.1]} 18. Bb3 {[%clk 0:01:20.1]} 18... Qc7 {[%clk 0:02:06.1]} 19. Ba5
{[%clk 0:01:21.5]} 19... Qd7 {[%clk 0:01:44.2]} 20. Rc1 {[%clk 0:01:10.3]} 20...
O-O {[%clk 0:01:44.8]} 21. h4 {[%clk 0:01:10.3]} 21... Bb7 {[%clk 0:01:39.6]}
22. h5 {[%clk 0:01:07.4]} 22... Rfc8 {[%clk 0:01:35.7]} 23. Rb1 {[%clk
0:01:02.8]} 23... Nb5 {[%clk 0:01:31.7]} 24. h6 {[%clk 0:01:03.8]} 24... g6
{[%clk 0:01:25]} 25. Ba4 {[%clk 0:01:02.7]} 25... Bc6 {[%clk 0:01:24.2]} 26. Nh2
{[%clk 0:01:01.8]} 26... Nxd4 {[%clk 0:01:07.2]} 27. Rb7 {[%clk 0:00:47.6]}
27... Qe8 {[%clk 0:00:57.4]} 28. Rxe7 {[%clk 0:00:42.1]} 28... Qxe7 {[%clk
0:00:57.3]} 29. Qxd4 {[%clk 0:00:43.5]} 29... Bxa4 {[%clk 0:00:57.8]} 30. Qxa4
{[%clk 0:00:45]} 30... Rab8 {[%clk 0:00:57.5]} 31. Rxb8 {[%clk 0:00:41]} 31...
Rxb8 {[%clk 0:00:58.7]} 32. g3 {[%clk 0:00:42.5]} 32... f5 {[%clk 0:00:57.3]}
33. exf6 {[%clk 0:00:42]} 33... Qxf6 {[%clk 0:00:57.5]} 34. Bc7 {[%clk
0:00:28.7]} 34... Rf8 {[%clk 0:00:40]} 35. Ng4 {[%clk 0:00:28.9]} 35... Qf5
{[%clk 0:00:28.3]} 36. Qd4 {[%clk 0:00:23.2]} 36... Rf7 {[%clk 0:00:28.5]} 37.
Be5 {[%clk 0:00:19.9]} 37... Qb1+ {[%clk 0:00:19.2]} 38. Kg2 {[%clk 0:00:20.6]}
38... Qe4+ {[%clk 0:00:19.8]} 39. Qxe4 {[%clk 0:00:21.4]} 39... dxe4 {[%clk
0:00:21.7]} 40. Nf6+ {[%clk 0:00:22.8]} 40... Kh8 {[%clk 0:00:21.6]} 41. Nxe4+
{[%clk 0:00:23.3]} 41... Kg8 {[%clk 0:00:22.8]} 42. Nf6+ {[%clk 0:00:24.2]}
42... Kh8 {[%clk 0:00:24.5]} 43. Kf3 {[%clk 0:00:21.5]} 43... a5 {[%clk
0:00:24.2]} 44. Ke4 {[%clk 0:00:20.1]} 44... a4 {[%clk 0:00:25.8]} 45. Nd7+
{[%clk 0:00:17.6]} 45... Kg8 {[%clk 0:00:26.5]} 46. Nf6+ {[%clk 0:00:19.1]}
46... Kh8 {[%clk 0:00:27.8]} 47. Kd4 {[%clk 0:00:18.2]} 47... Rb7 {[%clk
0:00:27.5]} 48. Bd6 {[%clk 0:00:14.4]} 48... Rb3 {[%clk 0:00:24.4]} 49. Bf8
{[%clk 0:00:14.1]} 49... Rb7 {[%clk 0:00:23.4]} 50. Ke5 {[%clk 0:00:13.9]} 50...
Ra7 {[%clk 0:00:20.8]} 51. Ba3 {[%clk 0:00:10.9]} 51... Ra6 {[%clk 0:00:19.6]}
52. f3 {[%clk 0:00:11.4]} 52... Rb6 {[%clk 0:00:20.8]} 53. Bf8 {[%clk
0:00:10.2]} 53... Rb7 {[%clk 0:00:22]} 54. Kxe6 {[%clk 0:00:11.3]} 54... Rb6+
{[%clk 0:00:22.6]} 55. Ke5 {[%clk 0:00:12.1]} 55... Rb7 {[%clk 0:00:23.9]} 56.
g4 {[%clk 0:00:11.2]} 56... Ra7 {[%clk 0:00:24.8]} 57. Bg7+ {[%clk 0:00:10.2]}
57... Rxg7 {[%clk 0:00:25.1]} 58. hxg7+ {[%clk 0:00:11.5]} 58... Kxg7 {[%clk
0:00:27]} 59. Ne4 {[%clk 0:00:12.6]} 59... h5 {[%clk 0:00:27.3]} 60. gxh5 {[%clk
0:00:10]} 60... gxh5 {[%clk 0:00:29.2]} 61. Kf5 {[%clk 0:00:11.4]} 61... a3
{[%clk 0:00:29]} 62. Nc3 {[%clk 0:00:12.4]} 62... Kh6 {[%clk 0:00:30.3]} 63. Na2
{[%clk 0:00:13.2]} 63... h4 {[%clk 0:00:27.8]} 64. Kg4 {[%clk 0:00:14.2]} 64...
Kg6 {[%clk 0:00:29.5]} 65. Kxh4 {[%clk 0:00:15.4]} 65... Kf5 {[%clk 0:00:31.4]}
66. Kg3 {[%clk 0:00:16.6]} 66... Kg5 {[%clk 0:00:32.9]} 67. f4+ {[%clk
0:00:17.5]} 67... Kf5 {[%clk 0:00:34.6]} 68. Kf3 {[%clk 0:00:19]} 68... Kf6
{[%clk 0:00:36.2]} 69. Ke4 {[%clk 0:00:20.2]} 69... Ke6 {[%clk 0:00:37.8]} 70.
f5+ {[%clk 0:00:21.3]} 70... Kf6 {[%clk 0:00:39.2]} 71. Kf4 {[%clk 0:00:22.4]}
71... Kf7 {[%clk 0:00:40.8]} 72. Ke5 {[%clk 0:00:23.6]} 72... Ke7 {[%clk
0:00:42.2]} 73. f6+ {[%clk 0:00:24.6]} 73... Kf7 {[%clk 0:00:43.7]} 74. Nc3
{[%clk 0:00:25.4]} 1-0

[Event "*** Qualifier 2: Titled Tuesday 3|2 Blitz"]
[Site "Chess.com"]
[Date "2017.04.11"]
[Round "5"]
[White "dhanushbharadwaj"]
[Black "Rodalquilar"]
[Result "1/2-1/2"]
[WhiteElo "2331"]
[BlackElo "2520"]
[TimeControl "180+2"]
[EndTime "14:07:59 PDT"]
[Termination "Game drawn by stalemate"]

1. Nf3 {[%clk 0:03:02]} 1... Nf6 {[%clk 0:03:00.6]} 2. c4 {[%clk 0:03:01.9]}
2... e6 {[%clk 0:03:01.5]} 3. g3 {[%clk 0:03:01.7]} 3... d5 {[%clk 0:03:02.5]}
4. b3 {[%clk 0:03:00.2]} 4... Be7 {[%clk 0:03:03.3]} 5. Bg2 {[%clk 0:03:01.3]}
5... O-O {[%clk 0:03:04.6]} 6. O-O {[%clk 0:03:02.4]} 6... a5 {[%clk 0:03:06]}
7. Bb2 {[%clk 0:03:02.3]} 7... a4 {[%clk 0:03:06.5]} 8. d3 {[%clk 0:02:58.7]}
8... c6 {[%clk 0:02:53.4]} 9. Nbd2 {[%clk 0:02:58.4]} 9... a3 {[%clk 0:02:53.1]}
10. Bc3 {[%clk 0:02:53]} 10... b5 {[%clk 0:02:53.5]} 11. Rc1 {[%clk 0:02:51.9]}
11... Qb6 {[%clk 0:02:53.9]} 12. e3 {[%clk 0:02:49.2]} 12... Rd8 {[%clk
0:02:53.7]} 13. Qc2 {[%clk 0:02:43.1]} 13... Ba6 {[%clk 0:02:54.1]} 14. Rfd1
{[%clk 0:02:41.2]} 14... Nbd7 {[%clk 0:02:54.8]} 15. Ne5 {[%clk 0:02:28.8]}
15... Nxe5 {[%clk 0:02:39.4]} 16. Bxe5 {[%clk 0:02:29]} 16... Nd7 {[%clk
0:02:37.2]} 17. Ba1 {[%clk 0:02:22.3]} 17... Rac8 {[%clk 0:02:34.3]} 18. Qc3
{[%clk 0:02:08.9]} 18... Bf6 {[%clk 0:02:20.7]} 19. Qc2 {[%clk 0:02:02.4]} 19...
Bxa1 {[%clk 0:02:02.4]} 20. Rxa1 {[%clk 0:02:02.9]} 20... bxc4 {[%clk
0:02:03.8]} 21. bxc4 {[%clk 0:02:02.3]} 21... Ne5 {[%clk 0:02:04.8]} 22. Rab1
{[%clk 0:01:47.9]} 22... Qa5 {[%clk 0:02:03]} 23. Nb3 {[%clk 0:01:46.4]} 23...
Qa4 {[%clk 0:02:03.6]} 24. c5 {[%clk 0:01:25.7]} 24... Rb8 {[%clk 0:01:54.9]}
25. h3 {[%clk 0:01:18.5]} 25... Rb4 {[%clk 0:01:42.4]} 26. f4 {[%clk 0:01:01.1]}
26... Nxd3 {[%clk 0:01:42.2]} 27. Rxd3 {[%clk 0:00:55.2]} 27... Bxd3 {[%clk
0:01:44.1]} 28. Qxd3 {[%clk 0:00:56.7]} 28... Rdb8 {[%clk 0:01:45.4]} 29. Bf1
{[%clk 0:00:52]} 29... Rxb3 {[%clk 0:01:18.7]} 30. axb3 {[%clk 0:00:39.3]} 30...
a2 {[%clk 0:01:19.5]} 31. Ra1 {[%clk 0:00:39.4]} 31... Rxb3 {[%clk 0:01:08.2]}
32. Qc2 {[%clk 0:00:38.4]} 32... Ra3 {[%clk 0:01:04.9]} 33. Qxa4 {[%clk
0:00:37]} 33... Rxa4 {[%clk 0:01:06.8]} 34. Kf2 {[%clk 0:00:35.9]} 34... f6
{[%clk 0:01:02.6]} 35. Ke2 {[%clk 0:00:36.3]} 35... Ra3 {[%clk 0:00:59.9]} 36.
Kd2 {[%clk 0:00:37]} 36... e5 {[%clk 0:01:00.4]} 37. fxe5 {[%clk 0:00:34.1]}
37... fxe5 {[%clk 0:01:02.3]} 38. Bd3 {[%clk 0:00:32]} 38... e4 {[%clk 0:00:59]}
39. Bc2 {[%clk 0:00:28.7]} 39... Kf7 {[%clk 0:00:58.7]} 40. Bd1 {[%clk
0:00:24.8]} 40... g6 {[%clk 0:00:46.3]} 41. Bg4 {[%clk 0:00:25]} 41... Ke7
{[%clk 0:00:46.9]} 42. Kc2 {[%clk 0:00:20.2]} 42... h5 {[%clk 0:00:47.8]} 43.
Bc8 {[%clk 0:00:12.8]} 43... Kd8 {[%clk 0:00:49.1]} 44. Be6 {[%clk 0:00:13.4]}
44... Ke7 {[%clk 0:00:50.4]} 45. Bc8 {[%clk 0:00:14.5]} 45... Rxe3 {[%clk
0:00:46.6]} 46. Rxa2 {[%clk 0:00:15]} 46... Rxg3 {[%clk 0:00:47.9]} 47. Ra7+
{[%clk 0:00:15.4]} 47... Kf6 {[%clk 0:00:41.6]} 48. Rc7 {[%clk 0:00:15.1]} 48...
d4 {[%clk 0:00:41.5]} 49. Rxc6+ {[%clk 0:00:14.7]} 49... Ke5 {[%clk 0:00:42.9]}
50. Re6+ {[%clk 0:00:14.9]} 50... Kd5 {[%clk 0:00:44.3]} 51. Re8 {[%clk
0:00:15.5]} 51... e3 {[%clk 0:00:30.6]} 52. Kd3 {[%clk 0:00:14.7]} 52... Kxc5
{[%clk 0:00:26.3]} 53. Re5+ {[%clk 0:00:15.2]} 53... Kd6 {[%clk 0:00:25.8]} 54.
Re4 {[%clk 0:00:15.6]} 54... Kc5 {[%clk 0:00:17.4]} 55. Re5+ {[%clk 0:00:15.5]}
55... Kd6 {[%clk 0:00:13.5]} 56. Re4 {[%clk 0:00:16.7]} 56... Kc5 {[%clk
0:00:11.3]} 57. Re5+ {[%clk 0:00:17.1]} 57... Kc6 {[%clk 0:00:12.9]} 58. Kxd4
{[%clk 0:00:15.7]} 58... Kc7 {[%clk 0:00:14.5]} 59. Rc5+ {[%clk 0:00:14.8]}
59... Kd6 {[%clk 0:00:15.5]} 60. Rd5+ {[%clk 0:00:14.7]} 60... Ke7 {[%clk
0:00:17]} 61. Re5+ {[%clk 0:00:15.5]} 61... Kd8 {[%clk 0:00:17]} 62. Rxe3 {[%clk
0:00:14.4]} 62... Rxe3 {[%clk 0:00:09.1]} 63. Kxe3 {[%clk 0:00:16.3]} 63... Kxc8
{[%clk 0:00:10.7]} 64. Kf4 {[%clk 0:00:17.8]} 64... Kd7 {[%clk 0:00:12]} 65. Kg5
{[%clk 0:00:19.4]} 65... Ke6 {[%clk 0:00:13.7]} 66. Kxg6 {[%clk 0:00:20.9]}
66... h4 {[%clk 0:00:15.2]} 67. Kg5 {[%clk 0:00:22.2]} 67... Kf7 {[%clk
0:00:16.7]} 68. Kxh4 {[%clk 0:00:24.1]} 68... Kg7 {[%clk 0:00:18.3]} 69. Kg5
{[%clk 0:00:25.9]} 69... Kh7 {[%clk 0:00:19.9]} 70. h4 {[%clk 0:00:27.8]} 70...
Kh8 {[%clk 0:00:21.7]} 71. h5 {[%clk 0:00:29.7]} 71... Kg8 {[%clk 0:00:23.5]}
72. h6 {[%clk 0:00:31.6]} 72... Kh8 {[%clk 0:00:25.4]} 73. Kg6 {[%clk
0:00:33.5]} 73... Kg8 {[%clk 0:00:27.3]} 74. h7+ {[%clk 0:00:35.4]} 74... Kh8
{[%clk 0:00:29.2]} 75. Kh6 {[%clk 0:00:37.3]} 1/2-1/2